bitfinex-derivatives/quotes_SOLF0:USTF0_20260305
["timestamp","ask_amount","ask_price","bid_price","bid_amount"]
[1772752842855,3.72725153,89.119,89.071,3.73548072]
[1772752844358,3.72725153,89.119,89.072,10.103]
[1772752844655,3.72725153,89.119,89.073,3.73548072]
[1772752846354,3.72725153,89.119,89.082,3.73548072]
[1772752847362,3.72725153,89.119,89.083,10.102]
[1772752848659,3.72725153,89.119,89.083,13.83748072]
[1772752848962,3.72725153,89.119,89.083,3.73548072]
[1772752852861,3.72725153,89.117,89.083,3.73548072]
[1772752853063,3.72725153,89.089,89.048,3.73548072]
[1772752853360,3.72725153,89.087,89.048,3.73548072]
[1772752853751,3.72725153,89.087,89.05,9.05499137]
[1772752853951,3.72725153,89.087,89.051,3.73548072]
[1772752855051,3.72725153,89.087,89.053,3.73548072]
[1772752855764,3.72725153,89.087,89.055,13.84048072]
[1772752856360,3.72725153,89.087,89.056,3.73548072]
[1772752859964,3.72725153,89.087,89.057,10.105]
[1772752860753,3.72725153,89.087,89.057,14.03030943]
[1772752861563,3.62123509,89.099,89.062,3.92530943]
[1772752863368,3.62123509,89.099,89.065,10.104]
[1772752864867,5.31951065,89.09,89.049,3.92530943]
[1772752865067,3.62123509,89.089,89.049,3.92530943]
[1772752866371,3.62123509,89.089,89.05,10.106]
[1772752866668,3.62123509,89.089,89.05,14.03130943]
[1772752866868,3.62123509,89.089,89.051,3.92530943]
[1772752871071,3.62123509,89.089,89.055,3.92530943]
[1772752875669,3.62123509,89.089,89.054,10.105]
[1772752882083,3.62123509,89.089,89.054,14.03030943]
[1772752882582,3.62123509,89.089,89.057,10.105]
[1772752882879,3.62123509,89.089,89.058,3.92530943]
[1772752886186,3.62123509,89.079,89.045,3.92530943]
[1772752886390,3.62123509,89.069,89.031,3.92530943]
[1772752887389,3.62123509,89.069,89.038,10.107]
[1772752888188,3.62123509,89.069,89.038,14.03230943]
[1772752893994,3.62123509,89.069,89.039,3.81762966]
[1772752897497,9.2684201,89.08,89.046,3.81762966]
[1772752897799,3.94890945,89.079,89.046,3.81762966]
[1772752901600,3.94890945,89.079,89.045,10.106]
[1772752902403,3.94890945,89.079,89.036,3.81762966]
[1772752903003,3.94890945,89.076,89.036,3.81762966]
[1772752906005,10.103,89.075,89.036,3.81762966]
[1772752906603,3.94890945,89.089,89.041,3.81762966]
[1772752906907,3.94890945,89.099,89.051,3.81762966]
[1772752907604,10.101,89.093,89.051,3.81762966]
[1772752908200,14.04990945,89.093,89.051,3.81762966]
[1772752909008,3.94890945,89.093,89.052,10.105]
[1772752909209,3.94890945,89.093,89.053,3.81762966]
[1772752909698,3.94890945,89.093,89.055,3.81762966]
[1772752911517,3.94890945,89.093,89.058,3.81762966]
[1772752912415,3.94890945,89.103,89.061,3.81762966]
[1772752913418,3.94890945,89.103,89.064,3.81762966]
[1772752914919,10.099,89.109,89.067,3.81762966]
[1772752915118,10.099,89.109,89.071,3.81762966]
[1772752915315,3.94890945,89.113,89.081,3.81762966]
[1772752916113,10.099,89.112,89.081,3.81762966]
[1772752921928,13.7622956,89.112,89.081,3.81762966]
[1772752922526,3.6632956,89.112,89.081,3.81762966]
[1772752924529,3.6632956,89.122,89.081,3.81762966]
[1772752925932,8.9862365,89.12,89.081,3.81762966]
[1772752926132,8.9862365,89.12,89.083,3.74292753]
[1772752927129,3.6632956,89.119,89.083,3.74292753]
[1772752928128,3.6632956,89.119,89.084,10.102]
[1772752929523,3.6632956,89.119,89.084,13.84492753]
[1772752930529,3.6632956,89.119,89.084,3.74292753]
[1772752932131,10.098,89.118,89.084,3.74292753]
[1772752932331,3.6632956,89.117,89.084,3.74292753]
[1772752933131,10.098,89.116,89.084,3.74292753]
[1772752933332,13.7612956,89.116,89.084,3.74292753]
[1772752934934,10.099,89.112,89.084,3.74292753]
[1772752939136,3.6632956,89.115,89.084,3.74292753]
[1772752941036,5.3229409,89.12,89.084,3.74292753]
[1772752941537,3.6632956,89.109,89.061,10.104]
[1772752941738,5.3229409,89.09,89.061,10.104]
[1772752942035,3.6632956,89.089,89.061,10.104]
[1772752945138,3.6632956,89.089,89.061,13.84692753]
[1772752945338,3.6632956,89.099,89.064,10.104]
[1772752945740,3.6632956,89.099,89.065,3.74292753]
[1772752947442,3.6632956,89.099,89.069,10.104]
[1772752951843,3.6632956,89.099,89.073,10.103]
[1772752953345,3.97970832,89.109,89.074,3.79437511]
[1772752954945,3.97970832,89.109,89.076,3.79437511]
[1772752957947,3.97970832,89.139,89.081,3.79437511]
[1772752958150,20.186,89.166,89.081,3.79437511]
[1772752958151,3.97970832,89.129,89.081,3.79437511]
[1772752959243,3.97970832,89.129,89.091,3.79437511]
[1772752959542,3.97970832,89.129,89.093,13.89537511]
[1772752960349,3.97970832,89.129,89.094,3.79437511]
[1772752965158,3.97970832,89.119,89.059,3.79437511]
[1772752965354,3.97970832,89.119,89.071,3.79437511]
[1772752966358,3.97970832,89.119,89.083,3.79437511]
[1772752967262,3.97970832,89.119,89.086,3.79437511]
[1772752968465,3.97970832,89.119,89.088,3.79437511]
[1772752969065,3.97970832,89.129,89.088,3.79437511]
[1772752971766,3.97970832,89.129,89.09,3.79437511]
[1772752972166,3.97970832,89.129,89.095,3.79437511]
[1772752973562,3.97970832,89.129,89.097,13.89437511]
[1772752973766,3.97970832,89.129,89.098,3.79437511]
[1772752975470,3.97970832,89.129,89.099,10.1]
[1772752978874,3.97970832,89.129,89.088,3.79437511]
[1772752979066,3.97970832,89.119,89.071,3.79437511]
[1772752979274,5.31931173,89.11,89.071,3.79437511]
[1772752980375,5.31931173,89.11,89.075,3.713536]
[1772752980675,3.97970832,89.119,89.075,3.713536]
[1772752981070,5.31931173,89.12,89.084,3.713536]
[1772752981269,3.85063479,89.119,89.084,3.713536]
[1772752981667,3.85063479,89.119,89.071,3.713536]
[1772752982576,3.85063479,89.116,89.071,3.713536]
[1772752983474,10.099,89.113,89.071,3.713536]
[1772752984375,3.85063479,89.116,89.071,3.713536]
[1772752985074,3.85063479,89.127,89.078,3.713536]
[1772752985666,3.85063479,89.119,89.078,3.713536]
[1772752986078,3.85063479,89.119,89.08,3.713536]
[1772752987277,3.85063479,89.119,89.082,3.713536]
[1772752988479,3.85063479,89.119,89.085,3.713536]
[1772752989481,3.85063479,89.119,89.087,3.713536]
[1772752992080,3.85063479,89.119,89.089,10.101]
[1772752992376,3.85063479,89.139,89.09,3.713536]
[1772752992575,3.85063479,89.139,89.091,3.713536]
[1772752992775,3.85063479,89.139,89.099,10.1]
[1772752994081,3.85063479,89.129,89.091,3.713536]
[1772752994582,3.85063479,89.129,89.093,10.101]
[1772752996882,3.85063479,89.129,89.091,3.713536]
[1772752998885,3.85063479,89.119,89.081,3.713536]
[1772752999384,3.85063479,89.119,89.083,3.713536]
[1772753000984,10.097,89.127,89.083,3.713536]
[1772753002284,13.94763479,89.127,89.083,3.713536]
[1772753003987,13.94763479,89.127,89.08,5.31931173]
[1772753003988,3.85063479,89.127,89.085,3.713536]
[1772753005588,3.85063479,89.127,89.088,3.713536]
[1772753010493,3.67049684,89.125,89.088,3.713536]
[1772753014596,3.67049684,89.123,89.088,3.713536]
[1772753015592,5.31931173,89.13,89.088,3.713536]
[1772753015593,13.76849684,89.122,89.088,3.713536]
[1772753021488,3.67049684,89.122,89.088,3.713536]
[1772753027492,3.67049684,89.122,89.095,10.1]
[1772753031598,8.3791392,89.133,89.1,3.84167912]
[1772753031798,3.67049684,89.132,89.091,3.84167912]
[1772753032500,13.69752002,89.14,89.102,3.84167912]
[1772753032705,17.36801686,89.14,89.102,3.84167912]
[1772753032899,3.67049684,89.138,89.102,3.84167912]
[1772753034203,5.31838082,89.13,89.102,3.84167912]
[1772753040404,5.31838082,89.13,89.081,3.95998199]
[1772753040405,3.60797486,89.129,89.081,3.95998199]
[1772753042005,10.097,89.126,89.081,3.95998199]
[1772753044504,3.60797486,89.129,89.091,3.95998199]
[1772753044804,11.98596937,89.139,89.093,3.95998199]
[1772753045009,3.60797486,89.154,89.101,3.95998199]
[1772753045211,3.60797486,89.146,89.101,3.95998199]
[1772753046810,3.60797486,89.146,89.102,3.95998199]
[1772753047608,3.60797486,89.146,89.105,14.05898199]
[1772753047803,3.60797486,89.146,89.106,3.95998199]
[1772753048413,3.60797486,89.158,89.123,3.95998199]
[1772753049409,3.60797486,89.158,89.127,10.097]
[1772753052416,3.60797486,89.158,89.123,3.95998199]
[1772753053725,5.31838082,89.15,89.123,3.95998199]
[1772753054527,3.60797486,89.158,89.123,3.95998199]
[1772753055622,3.60797486,89.158,89.11,5.31838082]
[1772753055623,3.60797486,89.149,89.111,3.95998199]
[1772753057126,3.60797486,89.159,89.111,3.95998199]
[1772753057328,13.70097486,89.159,89.114,3.95998199]
[1772753058220,3.60797486,89.158,89.114,3.95998199]
[1772753059826,3.60797486,89.158,89.116,3.95998199]
[1772753060030,3.60797486,89.149,89.101,3.95998199]
[1772753060426,3.60797486,89.149,89.103,3.95998199]
[1772753061332,3.60797486,89.149,89.105,3.95998199]
[1772753062633,3.60797486,89.149,89.11,5.31838082]
[1772753062833,3.60797486,89.149,89.107,3.95998199]
[1772753064428,3.60797486,89.149,89.11,14.05898199]
[1772753065033,3.60797486,89.149,89.111,3.95998199]
[1772753068537,5.31838082,89.13,89.093,3.95998199]
[1772753068736,3.60797486,89.139,89.093,3.95998199]
[1772753069437,3.60797486,89.139,89.097,3.82222962]
[1772753069637,5.31838082,89.13,89.097,3.82222962]
[1772753070534,3.60797486,89.139,89.097,3.82222962]
[1772753073539,3.9904711,89.149,89.111,3.68083931]
[1772753074441,3.9904711,89.149,89.112,10.099]
[1772753078142,3.9904711,89.149,89.115,13.77883931]
[1772753078440,3.9904711,89.149,89.116,3.68083931]
[1772753081144,3.9904711,89.149,89.118,3.68083931]
[1772753081344,9.30885192,89.16,89.12,5.31838082]
[1772753081645,9.30885192,89.16,89.13,10.097]
[1772753081844,3.9904711,89.159,89.13,10.097]
[1772753082549,3.9904711,89.139,89.084,3.68083931]
[1772753082845,3.9904711,89.129,89.084,3.68083931]
[1772753085344,3.9904711,89.129,89.088,3.68083931]
[1772753085848,3.9904711,89.129,89.091,3.68083931]
[1772753086249,3.9904711,89.129,89.093,3.68083931]
[1772753086450,3.9904711,89.139,89.093,3.68083931]
[1772753087347,5.31838082,89.14,89.101,3.68083931]
[1772753087550,5.31838082,89.15,89.101,3.68083931]
[1772753087952,3.9904711,89.149,89.101,3.68083931]
[1772753088455,3.9904711,89.149,89.105,3.68083931]
[1772753089854,3.9904711,89.149,89.108,3.68083931]
[1772753091454,3.9904711,89.149,89.111,10.099]
[1772753092255,3.9904711,89.149,89.111,13.77983931]
[1772753093251,5.31682378,89.14,89.102,10.1]
[1772753093450,3.9904711,89.139,89.103,3.68083931]
[1772753094453,3.9904711,89.109,89.061,24.68616057]
[1772753094759,5.31682378,89.09,89.061,3.68083931]
[1772753095258,3.9904711,89.089,89.056,10.105]
[1772753095850,9.30729488,89.08,89.045,10.106]
[1772753096061,5.31682378,89.08,89.046,3.68083931]
[1772753096456,5.31682378,89.09,89.046,3.68083931]
[1772753096662,3.9904711,89.091,89.058,3.68083931]
[1772753097553,5.31682378,89.1,89.058,3.68083931]
[1772753098562,5.31682378,89.1,89.05,5.31682378]
[1772753098563,5.31682378,89.09,89.062,3.68083931]
[1772753098857,9.30729488,89.09,89.051,3.68083931]
[1772753099362,5.31682378,89.1,89.053,3.68083931]
[1772753100455,5.31682378,89.1,89.063,3.68426494]
[1772753101262,5.31682378,89.11,89.071,3.68426494]
[1772753101464,3.70327853,89.114,89.071,3.68426494]
[1772753101758,3.70327853,89.114,89.075,13.78726494]
[1772753101953,3.70327853,89.114,89.076,3.68426494]
[1772753103566,3.70327853,89.114,89.077,3.68426494]
[1772753103954,3.70327853,89.13,89.086,3.68426494]
[1772753104155,3.70327853,89.13,89.091,3.68426494]
[1772753105567,3.70327853,89.145,89.101,3.68426494]
[1772753106664,3.70327853,89.145,89.105,3.68426494]
[1772753107559,3.70327853,89.145,89.11,5.31682378]
[1772753107864,3.70327853,89.145,89.111,3.68426494]
[1772753108465,5.31682378,89.15,89.111,3.68426494]
[1772753108963,5.31682378,89.15,89.11,5.31682378]
[1772753108964,5.31682378,89.15,89.113,3.68426494]
[1772753109161,3.70327853,89.156,89.113,3.68426494]
[1772753109466,3.70327853,89.156,89.12,5.31682378]
[1772753110274,3.70327853,89.156,89.115,10.098]
[1772753111166,5.31682378,89.16,89.118,3.68426494]
[1772753111366,5.31682378,89.16,89.121,3.68426494]
[1772753111572,3.70327853,89.167,89.121,3.68426494]
[1772753112072,3.70327853,89.167,89.128,10.097]
[1772753113172,3.70327853,89.167,89.128,13.78126494]
[1772753115474,3.70327853,89.167,89.135,10.096]
[1772753116275,3.70327853,89.167,89.131,3.68426494]
[1772753116675,10.091,89.177,89.131,3.68426494]
[1772753117976,13.79427853,89.177,89.131,3.68426494]
[1772753118173,3.70327853,89.176,89.131,3.68426494]
[1772753119076,10.092,89.175,89.131,3.68426494]
[1772753120278,13.79527853,89.175,89.131,3.68426494]
[1772753121073,10.092,89.167,89.131,3.68426494]
[1772753130686,1.95216084,89.208,89.131,3.68426494]
[1772753130687,13.71444898,89.173,89.131,3.68426494]
[1772753130988,13.71444898,89.173,89.135,3.80171502]
[1772753132290,3.62244898,89.173,89.137,3.80171502]
[1772753132691,10.091,89.182,89.141,3.80171502]
[1772753132889,10.091,89.182,89.14,5.31682378]
[1772753132890,3.62244898,89.184,89.15,5.31682378]
[1772753133987,3.62244898,89.184,89.145,3.80171502]
[1772753134590,3.62244898,89.184,89.148,10.094]
[1772753135388,3.62244898,89.184,89.148,13.89571502]
[1772753136291,3.62244898,89.184,89.149,3.80171502]
[1772753136591,3.62244898,89.184,89.151,3.80171502]
[1772753137588,3.62244898,89.184,89.151,13.89571502]
[1772753139695,3.62244898,89.184,89.156,10.094]
[1772753139992,3.62244898,89.197,89.156,13.89571502]
[1772753142293,3.62244898,89.197,89.156,3.80171502]
[1772753143899,3.62244898,89.195,89.156,3.80171502]
[1772753145397,5.31682378,89.2,89.156,3.80171502]
[1772753145398,3.62244898,89.193,89.156,3.80171502]
[1772753145995,3.62244898,89.189,89.156,3.80171502]
[1772753146394,13.71244898,89.189,89.156,3.80171502]
[1772753147797,10.09,89.186,89.156,3.80171502]
[1772753150301,13.71244898,89.186,89.156,3.80171502]
[1772753150601,13.71344898,89.184,89.156,3.80171502]
[1772753154203,3.62244898,89.184,89.156,3.80171502]
[1772753159804,10.089,89.194,89.156,3.80171502]
[1772753160109,10.089,89.194,89.159,3.76717458]
[1772753160407,5.31155519,89.17,89.131,3.76717458]
[1772753161405,5.31155519,89.17,89.141,10.095]
[1772753162008,3.60794313,89.149,89.11,3.76717458]
[1772753162207,3.60794313,89.139,89.101,3.76717458]
[1772753162505,5.31155519,89.15,89.116,10.098]
[1772753162812,3.60794313,89.151,89.111,3.76717458]
[1772753163007,3.60794313,89.159,89.129,13.86417458]
[1772753163508,5.31155519,89.17,89.095,21.00532126]
[1772753163509,3.60794313,89.169,89.133,13.86317458]
[1772753163714,3.60794313,89.169,89.134,3.76717458]
[1772753164611,3.60794313,89.169,89.135,10.096]
[1772753165416,8.91949832,89.19,89.142,3.76717458]
[1772753165615,3.60794313,89.19,89.16,5.31155519]
[1772753167108,3.60794313,89.19,89.154,10.094]
[1772753167305,3.60794313,89.19,89.161,10.093]
[1772753168109,3.60794313,89.179,89.14,5.31155519]
[1772753168807,3.60794313,89.179,89.151,10.094]
[1772753171316,3.60794313,89.179,89.143,10.095]
[1772753172615,3.60794313,89.179,89.149,10.094]
[1772753174809,3.60794313,89.179,89.141,13.86217458]
[1772753175116,3.60794313,89.179,89.141,10.095]
[1772753178825,3.60794313,89.179,89.147,10.095]
[1772753180028,3.60794313,89.179,89.131,3.76717458]
[1772753180029,3.60794313,89.179,89.139,10.096]
[1772753180232,5.31155519,89.17,89.139,10.096]
[1772753181027,3.60794313,89.179,89.139,10.096]
[1772753182427,3.60794313,89.179,89.131,3.76717458]
[1772753183528,3.60794313,89.176,89.131,3.76717458]
[1772753183828,3.60794313,89.176,89.137,3.76717458]
[1772753184022,3.60794313,89.169,89.137,3.76717458]
[1772753184224,3.60794313,89.169,89.125,3.76717458]
[1772753185422,3.60794313,89.165,89.125,3.76717458]
[1772753186031,3.60794313,89.165,89.131,3.76717458]
[1772753186725,3.60794313,89.165,89.132,10.096]
[1772753187530,3.60794313,89.165,89.131,3.76717458]
[1772753188025,3.60794313,89.165,89.121,3.76717458]
[1772753188230,3.60794313,89.165,89.121,13.86517458]
[1772753188531,3.60794313,89.165,89.122,3.76717458]
[1772753190431,3.60794313,89.165,89.129,10.097]
[1772753190835,3.60794313,89.165,89.122,3.76717458]
[1772753190836,5.31155519,89.16,89.122,3.76717458]
[1772753191033,3.89302903,89.159,89.111,3.92249912]
[1772753192637,3.89302903,89.159,89.12,10.098]
[1772753193338,5.31155519,89.15,89.12,10.098]
[1772753194339,3.89302903,89.159,89.12,10.098]
[1772753194536,3.89302903,89.159,89.126,10.097]
[1772753195034,3.89302903,89.159,89.111,3.92249912]
[1772753195230,4.42983049,89.15,89.122,10.097]
[1772753195434,3.89302903,89.159,89.122,10.097]
[1772753196637,3.89302903,89.159,89.115,10.098]
[1772753196843,8.32285952,89.15,89.115,10.098]
[1772753197339,3.89302903,89.149,89.111,3.92249912]
[1772753198543,3.89302903,89.149,89.111,14.02149912]
[1772753199443,3.89302903,89.149,89.12,10.098]
[1772753200145,3.89302903,89.159,89.126,10.097]
[1772753200442,3.89302903,89.159,89.089,20.203]
[1772753200443,4.42983049,89.15,89.101,3.92249912]
[1772753201034,3.89302903,89.159,89.118,10.098]
[1772753201540,3.89302903,89.159,89.111,3.92249912]
[1772753202244,4.42983049,89.15,89.112,10.099]
[1772753202441,3.89302903,89.149,89.112,10.099]
[1772753206451,3.89302903,89.139,89.105,10.099]
[1772753206749,3.89302903,89.139,89.106,3.92249912]
[1772753208645,3.89302903,89.139,89.11,10.099]
[1772753208851,8.32285952,89.13,89.095,3.92249912]
[1772753209046,8.32285952,89.13,89.097,10.1]
[1772753209249,8.32285952,89.13,89.098,3.92249912]
[1772753209447,3.89302903,89.13,89.098,3.92249912]
[1772753209847,8.32285952,89.14,89.098,3.92249912]
[1772753210347,8.32285952,89.14,89.102,3.92249912]
[1772753211451,8.32285952,89.14,89.103,10.1]
[1772753211655,8.32285952,89.14,89.103,14.02249912]
[1772753211953,8.32285952,89.14,89.1,4.42983049]
[1772753211954,8.32285952,89.14,89.109,10.099]
[1772753212148,3.89302903,89.14,89.109,10.099]
[1772753212353,3.89302903,89.149,89.11,3.92249912]
[1772753212547,3.89302903,89.149,89.117,10.098]
[1772753214255,3.89302903,89.149,89.11,3.92249912]
[1772753216353,4.42983049,89.14,89.11,3.92249912]
[1772753216652,4.43125405,89.14,89.11,3.92249912]
[1772753217755,3.89302903,89.129,89.088,3.92249912]
[1772753218254,3.89302903,89.129,89.091,3.92249912]
[1772753220261,3.89302903,89.129,89.093,3.98011993]
[1772753220962,3.89302903,89.129,89.095,3.98011993]
[1772753223862,3.89302903,89.129,89.086,10.102]
[1772753224058,3.89302903,89.129,89.085,3.98011993]
[1772753224059,3.6172905,89.119,89.085,3.98011993]
[1772753224258,3.6172905,89.119,89.071,3.98011993]
[1772753225359,3.6172905,89.119,89.079,10.102]
[1772753225564,3.6172905,89.119,89.079,14.08211993]
[1772753226161,3.6172905,89.119,89.08,3.98011993]
[1772753227459,3.6172905,89.109,89.069,3.98011993]
[1772753229765,10.099,89.114,89.063,10.104]
[1772753229766,3.6172905,89.099,89.063,10.104]
[1772753233262,3.6172905,89.099,89.057,3.98011993]
[1772753234468,3.6172905,89.089,89.05,10.106]
[1772753235163,4.43125405,89.08,89.044,3.98011993]
[1772753235364,8.04854455,89.08,89.044,3.98011993]
[1772753235563,3.6172905,89.079,89.044,3.98011993]
[1772753237872,3.6172905,89.079,89.045,10.106]
[1772753243371,3.6172905,89.089,89.048,3.98011993]
[1772753243972,3.6172905,89.089,89.051,10.106]
[1772753244373,3.6172905,89.089,89.048,3.98011993]
[1772753249681,3.6172905,89.089,89.049,10.106]
[1772753249883,3.6172905,89.089,89.049,14.08365098]
[1772753250377,3.6172905,89.089,89.05,3.97765098]
[1772753256778,3.77954396,89.087,89.05,3.97765098]
[1772753264295,3.77954396,89.087,89.052,3.97765098]
[1772753270410,3.77954396,89.087,89.053,10.105]
[1772753270809,3.77954396,89.087,89.053,14.08265098]
[1772753271307,3.77954396,89.087,89.054,3.97765098]
[1772753271902,10.099,89.108,89.069,10.103]
[1772753272106,3.77954396,89.099,89.067,3.97765098]
[1772753272310,3.77954396,89.099,89.051,3.97765098]
[1772753273512,4.43125405,89.1,89.051,3.97765098]
[1772753273513,3.77954396,89.097,89.061,10.104]
[1772753273711,4.43125405,89.09,89.061,10.104]
[1772753274310,4.43125405,89.09,89.053,3.97765098]
[1772753274506,3.77954396,89.097,89.053,3.97765098]
[1772753275602,3.77954396,89.095,89.053,3.97765098]
[1772753276509,10.101,89.092,89.053,3.97765098]
[1772753277511,13.88054396,89.092,89.053,3.97765098]
[1772753278709,13.88054396,89.092,89.055,3.97765098]
[1772753279512,4.43614897,89.09,89.055,3.97765098]
[1772753280511,8.37411066,89.091,89.059,3.70512327]
[1772753280710,10.1,89.099,89.059,3.70512327]
[1772753280913,10.1,89.099,89.061,3.70512327]
[1772753281112,10.099,89.108,89.069,3.70512327]
[1772753281312,10.099,89.108,89.071,3.70512327]
[1772753281807,10.1,89.102,89.071,3.70512327]
[1772753282715,4.43614897,89.1,89.071,3.70512327]
[1772753284817,10.1,89.096,89.051,3.70512327]
[1772753285008,4.43614897,89.09,89.051,3.70512327]
[1772753286510,4.43614897,89.09,89.053,3.70512327]
[1772753286712,10.1,89.096,89.053,3.70512327]
[1772753287515,10.1,89.096,89.055,3.70512327]
[1772753289819,10.1,89.096,89.061,3.70512327]
[1772753291724,8.39646777,89.1,89.061,3.70512327]
[1772753291923,8.39646777,89.1,89.062,3.70512327]
[1772753292917,8.39646777,89.1,89.064,10.104]
[1772753293116,8.39646777,89.1,89.065,3.70512327]
[1772753293918,3.9603188,89.099,89.067,10.104]
[1772753295924,3.9603188,89.099,89.072,10.103]
[1772753299030,3.9603188,89.099,89.065,3.70512327]
[1772753301724,3.9603188,89.099,89.069,10.103]
[1772753301930,3.9603188,89.099,89.069,13.80812327]
[1772753303328,3.9603188,89.099,89.07,3.70512327]
[1772753306932,3.9603188,89.119,89.071,3.70512327]
[1772753307622,4.43614897,89.11,89.071,3.70512327]
[1772753308424,4.43614897,89.11,89.074,3.70512327]
[1772753309927,10.098,89.114,89.077,3.827185]
[1772753310941,14.53414897,89.12,89.079,3.827185]
[1772753313038,14.53414897,89.12,89.081,3.827185]
[1772753313243,18.48963398,89.12,89.081,3.827185]
[1772753314033,10.098,89.12,89.081,3.827185]
[1772753314235,10.097,89.127,89.081,3.827185]
[1772753314439,3.95548501,89.13,89.091,3.827185]
[1772753316436,3.95548501,89.13,89.093,3.827185]
[1772753317435,3.95548501,89.13,89.095,3.827185]
[1772753318441,3.95548501,89.13,89.097,10.1]
[1772753319043,3.95548501,89.13,89.099,10.1]
[1772753319242,3.95548501,89.13,89.099,13.927185]
[1772753319936,14.05148501,89.139,89.102,3.827185]
[1772753320640,14.05148501,89.139,89.104,3.827185]
[1772753322538,3.95548501,89.138,89.104,3.827185]
[1772753323041,3.95548501,89.129,89.093,3.827185]
[1772753325046,3.95548501,89.127,89.093,3.827185]
[1772753325740,10.097,89.125,89.093,3.827185]
[1772753325941,3.95548501,89.127,89.093,3.827185]
[1772753329146,3.95548501,89.127,89.094,10.101]
[1772753330344,3.95548501,89.127,89.097,3.827185]
[1772753331248,14.53214897,89.14,89.097,3.827185]
[1772753331249,3.95548501,89.137,89.097,3.827185]
[1772753331454,14.05148501,89.135,89.097,3.827185]
[1772753332047,3.95548501,89.129,89.097,3.827185]
[1772753335046,3.95548501,89.129,89.099,10.1]
[1772753335546,3.95548501,89.129,89.097,3.827185]
[1772753336552,3.95548501,89.129,89.097,13.927185]
[1772753336850,3.95548501,89.148,89.101,3.827185]
[1772753337046,3.95548501,89.159,89.112,3.827185]
[1772753337552,3.95548501,89.159,89.119,10.098]
[1772753338157,8.39163398,89.15,89.119,10.098]
[1772753339356,3.95548501,89.149,89.119,10.098]
[1772753340860,4.43041734,89.15,89.122,3.87082284]
[1772753341059,3.76636849,89.159,89.122,3.87082284]
[1772753342058,4.43041734,89.15,89.124,10.097]
[1772753342959,4.43041734,89.15,89.122,3.87082284]
[1772753344562,3.76636849,89.159,89.122,3.87082284]
[1772753345160,4.43041734,89.17,89.122,3.87082284]
[1772753345658,8.19678583,89.17,89.122,3.87082284]
[1772753345863,8.19678583,89.17,89.12,4.43041734]
[1772753345864,3.76636849,89.17,89.131,3.87082284]
[1772753346561,3.76636849,89.169,89.131,3.87082284]
[1772753349163,3.76636849,89.169,89.132,3.87082284]
[1772753349470,3.76636849,89.187,89.141,3.87082284]
[1772753350462,4.43041734,89.18,89.147,3.87082284]
[1772753351269,4.43041734,89.18,89.148,10.095]
[1772753351465,4.43041734,89.18,89.148,13.75626579]
[1772753351668,4.43041734,89.18,89.149,3.66126579]
[1772753352164,3.76636849,89.187,89.149,3.66126579]
[1772753352361,3.76636849,89.187,89.151,3.66126579]
[1772753354772,4.43041734,89.18,89.151,3.66126579]
[1772753356467,4.43041734,89.18,89.097,21.00532126]
[1772753356468,3.70335007,89.189,89.141,3.66126579]
[1772753356664,3.70335007,89.179,89.141,3.66126579]
[1772753357270,3.70335007,89.189,89.151,3.66126579]
[1772753359771,4.43041734,89.18,89.151,3.66126579]
[1772753359971,3.70335007,89.189,89.151,3.66126579]
[1772753360274,3.70335007,89.189,89.151,13.75526579]
[1772753360775,3.70335007,89.189,89.151,3.66126579]
[1772753361772,3.70335007,89.189,89.153,10.094]
[1772753362166,4.43041734,89.18,89.153,10.094]
[1772753362875,3.70335007,89.169,89.134,3.66126579]
[1772753364377,3.70335007,89.169,89.141,10.095]
[1772753365175,4.43041734,89.17,89.141,10.095]
[1772753367481,4.43041734,89.17,89.145,10.095]
[1772753367784,3.70335007,89.179,89.145,10.095]
[1772753372085,3.70335007,89.179,89.145,13.93279483]
[1772753372480,3.70335007,89.179,89.155,10.094]
[1772753374388,3.70335007,89.179,89.145,3.83779483]
[1772753380991,4.43041734,89.17,89.145,3.83779483]
[1772753382589,3.67704145,89.193,89.145,3.83779483]
[1772753382893,3.67704145,89.189,89.151,3.83779483]
[1772753383894,4.43041734,89.18,89.151,3.83779483]
[1772753384593,3.67704145,89.189,89.151,3.83779483]
[1772753385496,3.67704145,89.186,89.151,3.83779483]
[1772753388899,3.67704145,89.186,89.152,10.094]
[1772753389699,3.67704145,89.179,89.144,10.095]
[1772753390002,8.36198279,89.194,89.111,20.198]
[1772753390003,3.67704145,89.169,89.131,3.83779483]
[1772753390999,3.67704145,89.169,89.143,10.095]
[1772753392403,8.92854596,89.204,89.111,20.198]
[1772753392404,3.67704145,89.159,89.111,3.83779483]
[1772753392598,4.43041734,89.15,89.111,3.83779483]